bitfinex-derivatives/quotes_BTCF0:USTF0_20240923
["timestamp","ask_amount","ask_price","bid_price","bid_amount"]
[1727076413884,0.001,63512.0,63511.0,0.3818]
[1727076414287,0.001,63512.0,63511.0,0.460522]
[1727076420185,0.001,63512.0,63511.0,0.099722]
[1727076420502,0.001,63512.0,63511.0,0.021]
[1727076421183,0.079721,63512.0,63511.0,0.021]
[1727076421380,0.001,63512.0,63511.0,0.021]
[1727076422090,0.001,63512.0,63511.0,0.099722]
[1727076422781,0.001,63512.0,63511.0,0.1625829]
[1727076422982,0.001,63512.0,63511.0,0.17834263]
[1727076423587,0.078704,63526.0,63521.0,0.078709]
[1727076423781,0.078704,63526.0,63522.0,0.0451]
[1727076424389,0.13,63524.0,63522.0,0.0451]
[1727076425094,0.13,63524.0,63522.0,0.0461]
[1727076425790,0.208706,63524.0,63522.0,0.0461]
[1727076425995,0.208706,63524.0,63522.0,0.001]
[1727076428097,0.078707,63523.0,63522.0,0.001]
[1727076428293,0.20429647,63523.0,63522.0,0.001]
[1727076428488,0.126107,63523.0,63522.0,0.001]
[1727076429396,0.078713,63519.0,63515.0,0.0482]
[1727076429604,0.208713,63519.0,63515.0,0.0482]
[1727076430893,0.208713,63519.0,63515.0,0.0532]
[1727076431092,0.078714,63518.0,63515.0,0.0622]
[1727076431500,0.078716,63516.0,63515.0,0.0622]
[1727076432102,0.078716,63516.0,63515.0,0.014]
[1727076432395,0.208716,63516.0,63515.0,0.014]
[1727076432589,0.28691483,63516.0,63515.0,0.014]
[1727076432992,0.28691483,63516.0,63515.0,0.009]
[1727076433189,0.28691483,63516.0,63515.0,0.014]
[1727076434511,0.208716,63516.0,63515.0,0.005]
[1727076434699,0.208716,63516.0,63515.0,0.014]
[1727076435000,0.28691483,63516.0,63515.0,0.014]
[1727076435394,0.208716,63516.0,63515.0,0.014]
[1727076437897,0.078716,63516.0,63515.0,0.014]
[1727076438509,0.208716,63516.0,63515.0,0.014]
[1727076441707,0.078716,63516.0,63515.0,0.014]
[1727076442007,0.078716,63516.0,63501.0,0.09410978]
[1727076442008,1.22784905,63516.0,63504.0,0.06285633]
[1727076442203,0.00770407,63518.0,63500.0,0.08093259]
[1727076442204,0.4908,63505.0,63500.0,0.06521851]
[1727076442398,0.208734,63501.0,63500.0,0.00236218]
[1727076442605,0.078734,63501.0,63500.0,0.00236218]
[1727076442814,0.208734,63501.0,63500.0,0.00236218]
[1727076443313,0.208734,63501.0,63500.0,0.01636218]
[1727076443806,0.208734,63501.0,63500.0,0.00236218]
[1727076444009,0.13,63501.0,63500.0,0.01636218]
[1727076444508,0.131,63501.0,63500.0,0.03036218]
[1727076445912,0.131,63501.0,63500.0,0.02336218]
[1727076446106,0.001,63501.0,63500.0,0.02336218]
[1727076446313,0.209734,63501.0,63500.0,0.02336218]
[1727076447210,0.209734,63501.0,63500.0,0.02036218]
[1727076449521,0.131,63501.0,63500.0,0.02036218]
[1727076450019,0.001,63501.0,63500.0,0.02036218]
[1727076461534,0.001,63501.0,63500.0,0.018]
[1727076462639,1.07344,63501.0,63488.0,0.06285633]
[1727076462837,1.07344,63501.0,63486.0,0.078753]
[1727076462838,0.08,63489.0,63486.0,0.23730933]
[1727076463742,0.08,63489.0,63488.0,0.014]
[1727076464333,0.440906,63492.0,63488.0,0.014]
[1727076464334,0.13,63491.0,63488.0,0.014]
[1727076464529,0.001,63489.0,63488.0,0.014]
[1727076465237,0.001,63489.0,63488.0,0.028]
[1727076465635,0.002,63489.0,63488.0,0.014]
[1727076466339,0.001,63489.0,63488.0,0.014]
[1727076466647,0.002,63489.0,63488.0,0.016]
[1727076467038,0.002,63489.0,63488.0,0.094751]
[1727076467536,0.002,63489.0,63488.0,0.141251]
[1727076469336,0.002,63489.0,63488.0,0.20410733]
[1727076470246,0.3608,63500.0,63489.0,0.078749]
[1727076470442,0.3608,63500.0,63493.0,0.0629131]
[1727076470747,0.3608,63500.0,63499.0,0.078737]
[1727076471538,0.3618,63500.0,63499.0,0.078737]
[1727076471842,0.001,63500.0,63499.0,0.125337]
[1727076472145,0.002,63500.0,63499.0,0.125337]
[1727076472352,0.002,63500.0,63499.0,0.21497838]
[1727076472536,0.002,63500.0,63499.0,0.31247426]
[1727076472734,0.001,63500.0,63499.0,0.31247426]
[1727076472934,0.002,63500.0,63499.0,0.32147426]
[1727076473344,0.002,63500.0,63499.0,0.22397838]
[1727076474439,0.002,63500.0,63499.0,0.145337]
[1727076475043,0.002,63500.0,63499.0,0.32143468]
[1727076475554,0.002,63500.0,63499.0,0.145337]
[1727076476142,0.002,63500.0,63499.0,0.22397838]
[1727076476363,0.002,63500.0,63499.0,0.145337]
[1727076479146,0.002,63500.0,63499.0,0.098737]
[1727076479450,0.080736,63500.0,63499.0,0.02]
[1727076480954,0.002,63500.0,63499.0,0.02]
[1727076483355,0.080736,63500.0,63499.0,0.02]
[1727076483859,0.002,63500.0,63499.0,0.02]
[1727076485780,0.002,63500.0,63499.0,0.098737]
[1727076487059,0.002,63500.0,63499.0,0.02]
[1727076487353,0.210736,63500.0,63499.0,0.02]
[1727076489856,0.080736,63500.0,63499.0,0.02]
[1727076490059,0.002,63500.0,63499.0,0.02]
[1727076492963,0.002,63500.0,63499.0,0.098737]
[1727076498873,0.002,63500.0,63499.0,0.571177]
[1727076499574,0.002,63500.0,63499.0,0.66866727]
[1727076501275,0.002,63500.0,63499.0,0.74740427]
[1727076501578,0.3608,63515.0,63512.0,0.078721]
[1727076501876,0.3608,63515.0,63512.0,0.208721]
[1727076502870,0.3608,63515.0,63512.0,0.078721]
[1727076503071,0.00436282,63513.0,63512.0,0.078721]
[1727076503667,0.00436282,63513.0,63512.0,0.079721]
[1727076504572,0.00436282,63513.0,63512.0,0.12984081]
[1727076504973,0.00236282,63513.0,63512.0,0.12984081]
[1727076505568,0.00336282,63513.0,63512.0,0.088721]
[1727076506268,0.00436282,63513.0,63512.0,0.094721]
[1727076506865,0.08308282,63513.0,63512.0,0.016]
[1727076507072,0.21308282,63513.0,63512.0,0.016]
[1727076507273,0.13436282,63513.0,63512.0,0.016]
[1727076513279,0.002,63513.0,63512.0,0.094721]
[1727076513677,0.132,63513.0,63512.0,0.016]
[1727076514271,0.08072,63513.0,63512.0,0.016]
[1727076514470,0.132,63513.0,63512.0,0.016]
[1727076516073,0.002,63513.0,63512.0,0.094721]
[1727076520680,0.002,63513.0,63512.0,0.14184081]
[1727076520988,0.002,63513.0,63512.0,0.094721]
[1727076521575,0.002,63513.0,63512.0,0.139821]
[1727076521777,0.002,63513.0,63512.0,0.185621]
[1727076522284,0.002,63513.0,63512.0,0.248449]
[1727076526089,0.002,63513.0,63512.0,0.185621]
[1727076526294,0.002,63513.0,63512.0,0.265621]
[1727076527902,0.002,63513.0,63512.0,0.32854486]
[1727076528592,0.002,63513.0,63512.0,0.265621]
[1727076529788,0.002,63513.0,63512.0,0.32854486]
[1727076531286,0.002,63513.0,63512.0,0.265621]
[1727076535502,0.001,63513.0,63512.0,0.255621]
[1727076535796,0.002,63513.0,63512.0,0.44090897]
[1727076535995,0.002,63513.0,63512.0,0.44190897]
[1727076539599,0.002,63513.0,63512.0,0.36337595]
[1727076542792,0.002,63513.0,63512.0,0.266621]
[1727076543900,0.07828207,63529.0,63512.0,0.41025728]
[1727076544109,0.0787,63530.0,63528.0,0.078701]
[1727076544399,0.0787,63530.0,63529.0,0.08]
[1727076544789,0.0787,63530.0,63528.0,0.078701]
[1727076544790,0.0787,63529.0,63528.0,0.078701]
[1727076545996,0.013,63530.0,63529.0,0.001]
[1727076547210,0.013,63530.0,63529.0,0.1597]
[1727076547700,0.006,63530.0,63529.0,0.1587]
[1727076547903,0.44208,63533.0,63529.0,0.1587]
[1727076548205,0.4408,63533.0,63529.0,0.1587]
[1727076548801,0.001,63530.0,63529.0,0.1657]
[1727076549106,0.001,63530.0,63529.0,0.1697]
[1727076549408,0.001,63530.0,63529.0,0.21288352]
[1727076549588,0.001,63530.0,63529.0,0.1697]
[1727076550494,0.08,63539.0,63535.0,0.078692]
[1727076550704,0.08,63539.0,63536.0,0.078691]
[1727076552299,0.083,63539.0,63536.0,0.078691]
[1727076552899,0.08,63537.0,63536.0,0.078691]
[1727076553206,0.003,63539.0,63536.0,0.078691]
[1727076553396,0.08,63537.0,63536.0,0.078691]
[1727076554097,0.003,63539.0,63536.0,0.08]
[1727076554295,0.003,63539.0,63538.0,0.078689]
[1727076554601,0.003,63539.0,63536.0,0.08]
[1727076554805,0.003,63539.0,63535.0,0.078692]
[1727076555007,0.08,63536.0,63532.0,0.40798352]
[1727076555198,0.08,63533.0,63532.0,0.3608]
[1727076555404,0.4408,63533.0,63527.0,0.078702]
[1727076555602,0.08,63530.0,63528.0,0.078701]
[1727076557711,0.081,63530.0,63528.0,0.086701]
[1727076558007,0.47224,63529.0,63528.0,0.008]
[1727076558213,0.2542,63529.0,63528.0,0.008]
[1727076558616,0.2542,63529.0,63528.0,0.013]
[1727076558617,1.32644,63529.0,63528.0,0.013]
[1727076559002,1.40472207,63529.0,63528.0,0.008]
[1727076559213,0.80472207,63529.0,63528.0,0.013]
[1727076560018,1.40572207,63529.0,63528.0,0.013]
[1727076561312,0.80572207,63529.0,63528.0,0.013]
[1727076561522,0.72744,63529.0,63528.0,0.013]
[1727076562602,1.11376435,63529.0,63528.0,0.013]
[1727076563414,1.1137644,63529.0,63528.0,0.013]
[1727076563910,0.6415244,63529.0,63528.0,0.013]
[1727076564306,1.6350644,63529.0,63516.0,0.3608]
[1727076564521,0.08,63517.0,63512.0,0.078721]
[1727076564809,0.08,63517.0,63512.0,0.158721]
[1727076565917,0.08,63517.0,63516.0,0.013]
[1727076566714,0.081,63517.0,63512.0,0.23290452]
[1727076566907,0.001,63517.0,63515.0,0.08]
[1727076567617,0.001,63517.0,63516.0,0.013]
[1727076567806,0.002,63517.0,63516.0,0.027]
[1727076568515,0.002,63517.0,63516.0,0.013]
[1727076568907,0.001,63517.0,63516.0,0.013]
[1727076569107,0.001,63517.0,63516.0,0.014]
[1727076569506,0.002,63517.0,63516.0,0.014]
[1727076569903,0.001,63517.0,63516.0,0.014]
[1727076570107,0.002,63517.0,63516.0,0.027]
[1727076578222,0.082,63517.0,63516.0,0.027]
[1727076580128,0.080715,63517.0,63516.0,0.017]
[1727076580323,0.209415,63517.0,63516.0,0.017]
[1727076581633,1.36045,63517.0,63516.0,0.017]
[1727076582628,0.078734,63501.0,63500.0,0.0477]
[1727076582826,0.078736,63500.0,63499.0,0.00236208]
[1727076583026,0.078736,63500.0,63496.0,0.06291137]
[1727076583027,0.08,63501.0,63492.0,0.04718352]
[1727076583329,0.08,63493.0,63491.0,0.04718352]
[1727076583535,0.08,63493.0,63490.0,0.14288352]
[1727076583923,0.4408,63495.0,63490.0,0.14288352]
[1727076584123,0.3608,63504.0,63492.0,0.20592852]
[1727076584124,0.08,63499.0,63492.0,0.20592852]
[1727076584337,0.3608,63498.0,63492.0,0.20592852]
[1727076584539,0.3598,63498.0,63492.0,0.20592852]
[1727076584738,0.3598,63498.0,63492.0,0.21092852]
[1727076584926,0.3598,63498.0,63496.0,0.04718352]
[1727076585422,0.3598,63498.0,63496.0,0.09228352]
[1727076585822,0.3608,63498.0,63496.0,0.09228352]
[1727076586033,0.3618,63498.0,63496.0,0.09228352]
[1727076586229,0.002,63498.0,63496.0,0.09228352]
[1727076586431,0.002,63498.0,63497.0,0.04718352]
[1727076587329,0.002,63498.0,63497.0,0.078739]
[1727076587835,0.002,63498.0,63497.0,0.12583507]
[1727076588528,0.001,63498.0,63497.0,0.12583507]
[1727076588934,0.002,63498.0,63497.0,0.12783507]
[1727076589237,0.002,63498.0,63497.0,0.12783736]
[1727076589629,0.3608,63504.0,63499.0,0.078736]
[1727076589831,0.3608,63504.0,63502.0,0.08]
[1727076590042,0.3608,63504.0,63503.0,0.046]
[1727076590430,0.3608,63504.0,63503.0,0.124732]
[1727076590726,0.439521,63512.0,63507.0,0.078726]
[1727076591038,0.439521,63512.0,63511.0,0.08]
[1727076591233,0.3608,63512.0,63511.0,0.08]
[1727076591733,0.3608,63512.0,63511.0,0.158722]
[1727076592123,0.3618,63512.0,63511.0,0.163722]
[1727076592328,0.001,63512.0,63511.0,0.163722]
[1727076592541,0.002,63512.0,63511.0,0.164722]
[1727076594341,0.002,63512.0,63511.0,0.084722]
[1727076599738,0.002,63512.0,63511.0,0.50843337]
[1727076600139,0.002,63512.0,63511.0,0.445522]
[1727076600341,0.002,63512.0,63511.0,0.084722]
[1727076601944,0.07798727,63525.0,63511.0,0.52548163]
[1727076602245,0.078713,63519.0,63516.0,0.3608]
[1727076602547,0.4908,63522.0,63516.0,0.3608]
[1727076602746,0.4908,63522.0,63516.0,0.439516]
[1727076604358,0.4908,63522.0,63517.0,0.078714]
[1727076604551,0.3608,63522.0,63517.0,0.13]
[1727076604749,0.001,63522.0,63521.0,0.20871]
[1727076604947,0.001,63522.0,63521.0,0.30393163]
[1727076605254,0.001,63522.0,63521.0,0.25681]
[1727076605446,0.002,63522.0,63521.0,0.30391628]
[1727076605653,0.002,63522.0,63521.0,0.25681]
[1727076606150,0.002,63522.0,63521.0,0.26481]
[1727076606451,0.3608,63534.0,63533.0,0.078695]
[1727076606640,0.3608,63534.0,63533.0,0.208695]
[1727076607343,0.3608,63534.0,63533.0,0.078695]
[1727076609048,0.3608,63534.0,63533.0,0.006]
[1727076609459,0.4908,63534.0,63533.0,0.006]
[1727076610056,0.569494,63534.0,63533.0,0.006]
[1727076610259,0.078701,63529.0,63522.0,0.3608]
[1727076610552,0.13,63524.0,63522.0,0.3608]
[1727076610744,0.078707,63523.0,63516.0,0.3608]
[1727076610946,0.13,63518.0,63516.0,0.3608]
[1727076612150,0.208714,63518.0,63516.0,0.3608]
[1727076612352,0.210714,63518.0,63516.0,0.3828]
[1727076612653,0.078715,63517.0,63516.0,0.022]
[1727076613655,0.125015,63517.0,63516.0,0.022]
[1727076613948,0.125015,63517.0,63503.0,0.00236203]
[1727076613949,1.197335,63517.0,63503.0,0.00236203]
[1727076614156,0.13,63508.0,63503.0,0.00236203]
[1727076614451,0.208726,63508.0,63503.0,0.00236203]
[1727076614648,0.205726,63508.0,63503.0,0.00236203]
[1727076614959,0.068726,63508.0,63503.0,0.00236203]
[1727076615155,0.068726,63508.0,63503.0,0.00536203]
[1727076615458,0.3608,63510.0,63503.0,0.00536203]
[1727076615648,0.3608,63510.0,63503.0,0.00236203]
[1727076615952,0.002,63508.0,63503.0,0.01536203]
[1727076617045,0.13,63504.0,63503.0,0.01536203]
[1727076617561,0.13,63504.0,63503.0,0.01236203]
[1727076617754,0.13,63504.0,63503.0,0.00236203]
[1727076618052,0.07873,63505.0,63503.0,0.00236203]
[1727076618256,0.001,63504.0,63503.0,0.00236203]
[1727076620848,0.002,63504.0,63503.0,0.00236203]
[1727076622452,0.002,63504.0,63500.0,0.078736]
[1727076622653,0.002,63504.0,63499.0,0.13]
[1727076622654,0.002,63504.0,63501.0,0.078734]
[1727076623043,0.001,63504.0,63501.0,0.078734]
[1727076623243,0.002,63504.0,63501.0,0.078734]
[1727076623664,0.002,63504.0,63497.0,0.3608]
[1727076623956,0.002,63504.0,63499.0,0.078737]
[1727076624447,0.001,63504.0,63499.0,0.078737]
[1727076624647,0.002,63504.0,63499.0,0.078737]
[1727076624957,0.002,63504.0,63501.0,0.078734]
[1727076625861,0.080731,63504.0,63499.0,0.078737]
[1727076626552,0.079731,63504.0,63499.0,0.078737]
[1727076626750,0.080731,63504.0,63499.0,0.078737]
[1727076627262,0.079731,63504.0,63499.0,0.078737]
[1727076627462,0.078732,63503.0,63497.0,0.3608]
[1727076628260,0.157465,63503.0,63497.0,0.3608]
[1727076628857,0.078732,63503.0,63497.0,0.3608]
[1727076629165,0.079732,63503.0,63497.0,0.3608]
[1727076629359,0.080732,63503.0,63497.0,0.3608]
[1727076629558,0.002,63503.0,63497.0,0.3608]
[1727076629867,0.078737,63499.0,63491.0,0.12579371]
[1727076630061,0.078737,63499.0,63491.0,0.078747]
[1727076630865,0.078737,63499.0,63492.0,0.078745]
[1727076631255,0.079737,63499.0,63492.0,0.078745]
[1727076631458,0.080737,63499.0,63492.0,0.078745]
[1727076631657,0.080737,63499.0,63493.0,0.078744]
[1727076632361,0.079737,63499.0,63493.0,0.078744]
[1727076632666,0.080737,63499.0,63493.0,0.078744]
[1727076632861,0.080737,63499.0,63490.0,0.4916]
[1727076632862,0.13,63496.0,63490.0,0.3616]
[1727076633062,0.13,63491.0,63482.0,0.04704671]
[1727076633256,0.13,63485.0,63481.0,0.078759]
[1727076633456,0.078752,63488.0,63481.0,0.078759]
[1727076633653,0.3608,63493.0,63483.0,0.13]
[1727076633866,0.3608,63493.0,63484.0,0.3608]
[1727076635071,0.3608,63493.0,63489.0,0.078749]
[1727076635264,0.3618,63493.0,63489.0,0.078749]
[1727076635760,0.001,63493.0,63489.0,0.078749]
[1727076636063,0.001,63493.0,63484.0,0.3608]
[1727076636064,0.001,63493.0,63492.0,0.208746]
[1727076636268,0.002,63493.0,63492.0,0.208746]
[1727076637758,0.002,63493.0,63492.0,0.25579271]
[1727076638267,0.002,63493.0,63492.0,0.208746]
[1727076640473,0.002,63493.0,63492.0,0.27147495]
[1727076640672,0.002,63493.0,63492.0,0.208746]
[1727076641465,0.002,63493.0,63492.0,0.28715719]
[1727076642060,0.002,63493.0,63492.0,0.30914042]
[1727076642266,0.002,63493.0,63492.0,0.3877399]
[1727076642466,0.002,63493.0,63492.0,0.38781486]
[1727076642779,0.002,63493.0,63492.0,0.30921538]
[1727076642959,0.002,63493.0,63492.0,0.38784483]
[1727076643164,0.002,63493.0,63492.0,0.208746]
[1727076643769,0.002,63493.0,63492.0,0.28737545]
[1727076644469,0.002,63493.0,63492.0,0.38789112]
[1727076646468,0.002,63493.0,63492.0,0.30926167]
[1727076646873,0.002,63493.0,63492.0,0.38792076]
[1727076647072,0.002,63493.0,63492.0,0.30926167]
[1727076648176,0.002,63493.0,63492.0,0.208746]
[1727076648574,0.002,63493.0,63492.0,0.569546]
[1727076649881,0.002,63493.0,63492.0,0.74870472]
[1727076651982,0.002,63493.0,63492.0,0.67004624]
[1727076655273,0.002,63493.0,63492.0,0.74871165]
[1727076655590,0.002,63493.0,63492.0,0.67004624]
[1727076656074,0.002,63493.0,63492.0,0.76413967]
[1727076659886,0.002,63493.0,63492.0,0.67004624]
[1727076660216,0.002,63493.0,63492.0,0.54004624]
[1727076660387,0.002,63493.0,63492.0,0.439546]
[1727076662892,0.002,63493.0,63492.0,0.569546]
[1727076663297,0.002,63493.0,63492.0,0.63247681]
[1727076663596,0.002,63493.0,63492.0,0.569546]
[1727076664191,0.002,63493.0,63492.0,0.63249217]
[1727076664401,0.002,63493.0,63492.0,0.569546]
[1727076664794,0.002,63493.0,63492.0,0.439546]
[1727076665292,0.002,63493.0,63492.0,0.078746]
[1727076665489,0.002,63493.0,63492.0,0.14170789]
[1727076665695,0.002,63493.0,63492.0,0.078746]
[1727076666197,0.002,63493.0,63492.0,0.569546]
[1727076666694,0.002,63493.0,63492.0,0.66998997]
[1727076666896,0.0037,63505.0,63504.0,0.078731]
[1727076667190,0.0922,63506.0,63504.0,0.12595768]
[1727076667391,0.0922,63506.0,63505.0,0.04722668]
[1727076668490,0.0922,63506.0,63504.0,0.12595768]
[1727076671093,0.0932,63506.0,63504.0,0.078731]
[1727076671392,0.0932,63506.0,63505.0,0.04720833]
[1727076671991,0.0932,63506.0,63505.0,0.04720632]
[1727076672590,0.454,63506.0,63505.0,0.04720632]
[1727076672801,0.454,63506.0,63504.0,0.04720632]
[1727076673697,0.453,63506.0,63504.0,0.04720632]
[1727076674293,0.454,63506.0,63504.0,0.04720632]
[1727076676093,0.454,63506.0,63505.0,0.04720632]
[1727076676586,0.454,63506.0,63504.0,0.078731]
[1727076677190,0.453,63506.0,63504.0,0.078731]
[1727076678100,0.453,63506.0,63505.0,0.06296891]
[1727076678489,0.454,63506.0,63505.0,0.06296891]
[1727076679304,0.454,63506.0,63505.0,0.14169891]
[1727076679999,0.3618,63506.0,63505.0,0.14169891]
[1727076680203,0.001,63506.0,63505.0,0.07873]
[1727076680398,0.3608,63519.0,63505.0,0.09993937]
[1727076680699,0.3608,63519.0,63517.0,0.078714]
[1727076682109,0.3708,63519.0,63516.0,0.04718208]
[1727076682290,0.3798,63519.0,63516.0,0.04718208]
[1727076682490,0.3798,63519.0,63508.0,0.3608]
[1727076682491,0.3798,63519.0,63515.0,0.04718208]
[1727076683002,0.3798,63519.0,63513.0,0.04718208]
[1727076683196,0.3798,63519.0,63513.0,0.12590208]
[1727076683907,0.3788,63519.0,63513.0,0.12590208]
[1727076684306,0.3778,63519.0,63513.0,0.12590208]
[1727076684707,0.13,63516.0,63513.0,0.04718208]
[1727076685005,0.0458,63515.0,63510.0,0.04718208]
[1727076685310,0.13,63512.0,63510.0,0.04718208]
[1727076685809,0.13,63512.0,63507.0,0.06290944]
[1727076685810,0.3608,63511.0,63507.0,0.04718208]
[1727076686111,0.13,63508.0,63504.0,0.12827406]
[1727076686305,0.0491,63510.0,63504.0,0.00236198]
[1727076686502,0.0491,63510.0,63507.0,0.078727]
[1727076686698,0.0491,63510.0,63508.0,0.3608]
[1727076686911,0.0458,63515.0,63507.0,0.13]
[1727076687104,0.0458,63515.0,63508.0,0.04718208]
[1727076687500,0.0458,63515.0,63510.0,0.078722]
[1727076688306,0.0468,63515.0,63510.0,0.078722]
[1727076689409,0.0458,63515.0,63510.0,0.078722]
[1727076693207,0.0458,63515.0,63511.0,0.04718208]
[1727076693501,0.0458,63515.0,63512.0,0.04718208]
[1727076693912,0.0458,63515.0,63511.0,0.04718208]
[1727076694619,0.0458,63515.0,63510.0,0.078722]
[1727076695415,0.0458,63515.0,63510.0,0.12590408]
[1727076695914,0.208715,63517.0,63510.0,0.04718208]
[1727076696105,0.00236232,63521.0,63505.0,0.3608]
[1727076696106,0.078711,63520.0,63513.0,0.078719]
[1727076696310,0.439513,63519.0,63513.0,0.078719]
[1727076696820,0.439513,63519.0,63513.0,0.12590108]
[1727076697029,0.08107232,63521.0,63516.0,0.439516]
[1727076697818,0.003,63519.0,63516.0,0.439516]
[1727076698322,0.003,63519.0,63516.0,0.3608]
[1727076698509,0.001,63519.0,63516.0,0.3608]
[1727076699225,0.006,63519.0,63516.0,0.3608]
[1727076699620,0.005,63519.0,63516.0,0.3608]
[1727076700513,0.009,63519.0,63516.0,0.3608]
[1727076700712,0.009,63519.0,63514.0,0.078718]
[1727076701216,0.009,63519.0,63512.0,0.04718208]
[1727076701217,0.208713,63518.0,63512.0,0.04718208]
[1727076701420,0.078715,63517.0,63511.0,0.04718208]
[1727076702414,0.078715,63517.0,63512.0,0.04718208]
[1727076703315,0.078715,63517.0,63512.0,0.078721]
[1727076703520,0.078715,63517.0,63516.0,0.3608]
[1727076704310,0.078715,63517.0,63514.0,0.04718208]
[1727076704519,0.078715,63517.0,63512.0,0.078721]
[1727076704520,0.078715,63517.0,63512.0,0.12590308]
[1727076705108,0.083715,63517.0,63512.0,0.12590308]
[1727076705814,0.078716,63516.0,63513.0,0.04718208]
[1727076706914,0.078716,63516.0,63514.0,0.04718208]
[1727076707221,0.079716,63516.0,63514.0,0.04718208]
[1727076708014,0.001,63516.0,63514.0,0.04718208]
[1727076708222,0.07763767,63515.0,63512.0,0.07872]
[1727076708528,0.004,63516.0,63512.0,0.12590208]
[1727076708912,0.003,63516.0,63512.0,0.12590208]
[1727076709223,0.005,63516.0,63512.0,0.12590208]
[1727076709528,0.005,63516.0,63508.0,0.3608]
[1727076709529,0.005,63516.0,63514.0,0.04718208]
[1727076709726,0.003,63516.0,63513.0,0.12590108]
[1727076710423,0.07763767,63517.0,63513.0,0.12590108]
[1727076710627,0.001,63515.0,63513.0,0.12590108]
[1727076711019,0.004,63516.0,63513.0,0.12590108]
[1727076711716,0.002,63516.0,63515.0,0.04718208]
[1727076712424,0.003,63516.0,63515.0,0.04718208]
[1727076712813,0.003,63516.0,63511.0,0.06290944]
[1727076713020,0.003,63516.0,63515.0,0.04722672]
[1727076713220,0.005,63516.0,63515.0,0.04722672]
[1727076713926,0.20763767,63518.0,63515.0,0.04722672]
[1727076714127,0.005,63516.0,63515.0,0.04722672]
[1727076714529,0.002,63516.0,63515.0,0.04722672]
[1727076715429,0.001,63516.0,63515.0,0.04722672]
[1727076715626,0.20763767,63518.0,63515.0,0.04722672]
[1727076715820,0.20863767,63518.0,63515.0,0.04722672]
[1727076716532,0.20863767,63518.0,63516.0,0.04722672]
[1727076717050,0.07863767,63518.0,63516.0,0.12594272]
[1727076717348,0.00236232,63521.0,63516.0,0.078716]
[1727076717349,0.07763767,63520.0,63516.0,0.078716]
[1727076717548,0.07763767,63520.0,63518.0,0.04723148]
[1727076718138,0.07763767,63520.0,63517.0,0.04723148]
[1727076718447,0.07763767,63519.0,63516.0,0.12594748]
[1727076718642,0.001,63518.0,63516.0,0.12594748]
[1727076719053,0.001,63518.0,63517.0,0.078715]
[1727076719436,0.006,63520.0,63519.0,0.078712]
[1727076720143,0.004,63520.0,63519.0,0.078712]
[1727076720550,0.004,63520.0,63517.0,0.04722334]
[1727076720551,0.212711,63520.0,63517.0,0.04722334]
[1727076720843,0.07763767,63518.0,63514.0,0.40894334]
[1727076721037,0.07763767,63518.0,63514.0,0.40802334]
[1727076721238,0.07763767,63518.0,63513.0,0.12594234]
[1727076721239,0.07763767,63517.0,63513.0,0.12594234]
[1727076721641,0.13,63515.0,63514.0,0.04722334]
[1727076721842,0.13,63515.0,63513.0,0.12594234]
[1727076722555,0.13,63515.0,63514.0,0.04722334]
[1727076722940,0.13,63515.0,63513.0,0.12594234]
[1727076723449,0.13,63515.0,63514.0,0.06290944]
[1727076724053,0.13,63515.0,63508.0,0.4394368]
[1727076725249,0.001,63515.0,63510.0,0.0786368]
[1727076725952,0.002,63515.0,63510.0,0.0786368]
[1727076726151,0.002,63515.0,63514.0,0.078718]
[1727076728245,0.001,63515.0,63514.0,0.078718]
[1727076728552,0.081,63515.0,63514.0,0.078718]
[1727076729055,0.08,63515.0,63511.0,0.078721]
[1727076729655,0.08,63512.0,63508.0,0.4394368]
[1727076729850,0.08,63512.0,63508.0,0.4237827]
[1727076730047,0.158725,63509.0,63508.0,0.3608]
[1727076730250,0.08,63509.0,63508.0,0.3608]
[1727076732352,0.208725,63509.0,63508.0,0.3608]
[1727076732854,0.209725,63509.0,63508.0,0.3608]
[1727076734652,0.131,63509.0,63508.0,0.3608]
[1727076734962,0.131,63509.0,63504.0,0.1417127]
[1727076734963,0.131,63509.0,63505.0,0.04719245]
[1727076736360,0.131,63509.0,63506.0,0.078728]
[1727076736361,0.001,63509.0,63506.0,0.078728]
[1727076737060,0.002,63509.0,63506.0,0.078728]
[1727076738864,0.002,63509.0,63502.0,0.078733]
[1727076739065,0.13,63508.0,63501.0,0.04719245]
[1727076739250,0.002,63509.0,63499.0,0.046]
[1727076739251,0.13,63503.0,63499.0,0.12592845]
[1727076739448,0.13,63503.0,63499.0,0.078736]
[1727076740064,0.4908,63508.0,63498.0,0.3608]
[1727076740270,0.4918,63508.0,63502.0,0.078733]
[1727076740758,0.001,63503.0,63502.0,0.078733]
[1727076740952,0.001,63503.0,63498.0,0.40799245]
[1727076741353,0.49308,63508.0,63498.0,0.40799245]
[1727076741560,0.4918,63508.0,63498.0,0.3608]
[1727076741761,0.4918,63508.0,63497.0,0.04719245]
[1727076741762,0.13,63499.0,63497.0,0.04719245]
[1727076742062,0.13,63499.0,63491.0,0.04719245]
[1727076742063,0.078739,63497.0,63491.0,0.04719245]
[1727076742267,0.13,63495.0,63490.0,0.3608]